Cogmind - Beta 13 @@@ ROGUE MODE // 2024.06.03 @ 18:23:58 Player: Kat Result: Self-destructed Performance ------------- Evolutions (2) 1000 Regions Visited (4) 800 Robots Destroyed (15) 75 Value Destroyed (324) 324 Prototype IDs (4) 80 Alien Tech Used (0) 0 Bonus (0) 0 TOTAL SCORE: 2279 Bonus ------- None Cogmind --------- Core Integrity 534/550 Matter 174/300 Energy 28/125 System Corruption 0% Temperature Cool (0) Movement Hovering (51) Location -8/Materials Parts ------- > --- POWER (1) -------- Light Ion Engine > --- PROPULSION (4) --- Airjet Aerolev Unit > --- UTILITY (4) ------ Improved Cooling System Sensor Array Signal Interpreter Targeting Computer > --- WEAPON (2) ------- Cooled Pulse Rifle Cooled Pulse Rifle > --- INVENTORY (5) ---- Propulsion Shielding Cooled Pulse Rifle Cooled Pulse Rifle Missile Launcher Missile Launcher Peak State ------------ > --- POWER ------------ Light Ion Engine > --- PROPULSION ------- Airjet Aerolev Unit > --- UTILITY ---------- Improved Cooling System Sensor Array Signal Interpreter Targeting Computer > --- WEAPON ----------- Cooled Pulse Rifle Cooled Pulse Rifle > --- INVENTORY -------- Propulsion Shielding Cooled Pulse Rifle Cooled Pulse Rifle Missile Launcher Missile Launcher [Rating: 26] Favorites ----------- Power Light Ion Engine Engine Light Ion Engine Propulsion Flight Unit Leg Aluminum Leg Hover Unit Aerolev Unit Flight Unit Flight Unit Utility Sensor Array Device Sensor Array Storage Small Storage Unit Processor Targeting Computer Protection Propulsion Shielding Weapon Assault Rifle Energy Gun Small Laser Ballistic Gun Assault Rifle Launcher Grenade Launcher Slashing Weapon Mining Claw Build | -11 -10 -10 -9 -8 ------- Run | Yrd Mat Min Mat Mat Slots Evolved 4 | . . . 2 2 Power . | . . . . . Propulsion 2 | . . . . 2 Utility 2 | . . . 2 . Weapon . | . . . . . Parts Attached 34 | 6 9 5 3 11 Power 2 | 1 . 1 . . Engine 2 | 1 . 1 . . Core . | . . . . . Reactor . | . . . . . Propulsion 12 | 2 2 2 . 6 Treads . | . . . . . Leg 4 | 2 2 . . . Wheel . | . . . . . Hover 3 | . . . . 3 Flight 5 | . . 2 . 3 Utility 8 | 1 4 . 2 1 Device 4 | . 3 . . 1 Storage 1 | 1 . . . . Processor 2 | . 1 . 1 . Hackware . | . . . . . Protection 1 | . . . 1 . Artifact . | . . . . . Weapon 12 | 2 3 2 1 4 Energy Gun 5 | . 2 . . 3 Energy Cannon . | . . . . . Ballistic Gun 5 | 2 . 1 1 1 Ballistic Cannon . | . . . . . Launcher 1 | . 1 . . . Special Weapon . | . . . . . Impact Weapon . | . . . . . Slashing Weapon 1 | . . 1 . . Piercing Weapon . | . . . . . Special Melee Weapon . | . . . . . Unidentified Prototypes 4 | . . . 1 3 Parts Lost 1 | . 1 . . . Power 1 | . 1 . . . Propulsion . | . . . . . Utility . | . . . . . Weapon . | . . . . . Highest Loss Streak 1 | . 1 . . . To Critical Strikes . | . . . . . Average Slot Usage (%) 88 | . 88 96 83 84 Engine 10 | . 9 12 11 9 Leg 10 | . 21 . . . Hover 2 | . . . . 12 Flight 10 | . . 25 22 10 Device 13 | . 12 14 11 14 Storage 5 | . 11 . . . Processor 9 | . 2 14 17 18 Protection 1 | . . . 11 3 Energy Gun 9 | . 9 10 . 13 Ballistic Gun 8 | . 10 9 11 2 Launcher 4 | . 8 . . . Slashing Weapon 1 | . . 7 . . Naked Turns . | . . . . . Heaviest Build 14 | 11 14 8 8 14 Greatest Support 20 | 20 20 8 8 16 Greatest Overweight (x) 1 | 1 . . . 1 Average Overweight (x) . | . . . . . Largest Inventory Capacity 8 | 8 8 5 5 5 Average Capacity 6 | 7 7 5 5 5 Most Carried 6 | 6 6 5 5 5 Average Carried 4 | 2 4 4 4 4 Final Capacity 8 | 8 5 5 5 5 Final Carried 5 | 2 5 5 5 5 Class Distribution -------------------- 90% | Mutant 5% | Scavenger-Mutant 3% | Scavenger-Sprinter Dominant Class ---------------- Mutant | -10/Materials Mutant | -10/Mines Mutant | -9/Materials Mutant | -8/Materials Resources | -11 -10 -10 -9 -8 ----------- Run | Yrd Mat Min Mat Mat Matter Collected 509 | 239 177 73 20 . Remotely . | . . . . . Salvage Created 475 | . 302 99 12 62 Parts 37 | . 22 11 4 . Haulers Intercepted 1 | . 1 . . . Recyclers Shooed 3 | . 1 2 . . Parts Field Recycled . | . . . . . Retrieved Matter . | . . . . . Parts Self-Destructed . | . . . . . Prevented . | . . . . . Kills | -11 -10 -10 -9 -8 ------- Run | Yrd Mat Min Mat Mat Combat Hostiles Destroyed 9 | . 5 3 . 1 Guns 6 | . 2 3 . 1 AOE 3 | . 3 . . . Classes Destroyed 6 | . 5 1 . . Builder 1 | . 1 . . . Hauler 1 | . 1 . . . Recycler 2 | . 1 1 . . Watcher 2 | . 1 . 1 . Swarmer 3 | . . 3 . . Grunt 6 | . 5 . . 1 Best Kill Streak 6 | . 6 4 1 1 Combat Bots Only 3 | . 3 3 . 1 Max Kills in Single Turn 2 | . 2 1 1 1 Gunslinging . | . . . . . Exploded 1 | . 1 . . . Melee . | . . . . . Uniques/NPCs Destroyed . | . . . . . Combat | -11 -10 -10 -9 -8 -------- Run | Yrd Mat Min Mat Mat Hostile Shots Fired 50 | . 26 14 1 9 Missed 9 | . 4 2 1 2 Damage Taken 518 | . 307 93 . 118 Core 145 | . 82 47 . 16 Absorbed by Shields . | . . . . . Regen/Repaired (Parts) 50 | . 50 . . . Core Remaining (%) 82 | 100 . 48 100 . Volleys Fired 42 | . 25 9 2 6 Largest 2 | . 2 2 1 2 Hottest 80 | . 80 80 23 40 Shots Fired 69 | . 37 18 2 12 Gun 65 | . 33 18 2 12 Cannon . | . . . . . Launcher 4 | . 4 . . . Special . | . . . . . Kinetic 20 | . 17 1 2 . Thermal 45 | . 16 17 . 12 Explosive 4 | . 4 . . . Electromagnetic . | . . . . . Robot Hit Streak 8 | . 7 8 1 8 Robot Miss Streak 4 | . 4 2 1 1 Penetration Max . | . . . . . Secondary Targets 1 | . . 1 . . Max Gunslinging Chain 1 | . . 1 . . Shots Hit Robots 47 | . 22 14 1 10 Core Hits 29 | . 18 6 1 4 Critical Kills . | . . . . . Critical Parts Destroyed . | . . . . . Critical Strikes 3 | . . . . 3 Burn 3 | . . . . 3 Melee Attacks 3 | . . 3 . . Impact . | . . . . . Slashing 3 | . . 3 . . Piercing . | . . . . . Sneak Attacks 1 | . . 1 . . Combat Hostiles . | . . . . . Follow-up Attacks . | . . . . . Damage Inflicted 1003 | . 590 205 15 193 Guns 629 | . 260 161 15 193 Cannons . | . . . . . Explosions 330 | . 330 . . . Melee 44 | . . 44 . . Ramming . | . . . . . Kinetic 143 | . 115 13 15 . Thermal 486 | . 145 148 . 193 Explosive 330 | . 330 . . . Electromagnetic . | . . . . . Impact . | . . . . . Slashing 44 | . . 44 . . Piercing . | . . . . . Highest Corruption . | . . . . . Average Corruption . | . . . . . Corruption Purged . | . . . . . Corruption Blocked . | . . . . . Overload Shots . | . . . . . Overflow Damage 4 | . . 4 . . Projectiles . | . . . . . Explosions . | . . . . . Melee 4 | . . 4 . . Knockbacks . | . . . . . Impact . | . . . . . Kinetic . | . . . . . Secondary . | . . . . . Self-Inflicted Damage . | . . . . . Shots . | . . . . . Rammed . | . . . . . Targets Rammed . | . . . . . Kicked . | . . . . . Crushed . | . . . . . Highest Temperature 154 | . 154 36 . . Average Temperature 51 | . 87 12 . . Received Heat Transfer 276 | . 177 . . 99 Siege Activations . | . . . . . Robots Corrupted . | . . . . . Combat Hostiles . | . . . . . Parts Fried . | . . . . . Impact Corruptions . | . . . . . Robots Melted . | . . . . . Combat Hostiles . | . . . . . Parts Melted 2 | . 1 . . 1 Heat Transferred 1242 | . 325 325 . 592 Parts Sabotaged . | . . . . . Parts Stolen . | . . . . . Parts Stripped . | . . . . . Power Chain Reactions . | . . . . . Alert | -11 -10 -10 -9 -8 ------- Run | Yrd Mat Min Mat Mat Peak Influence 193 | . 193 101 111 137 Initial 46 | . . 11 39 46 Average 73 | . 71 97 68 72 Maximum Alert Level . | . . . . . Low Security (%) 100 | 100 100 100 100 100 Level 1 . | . . . . . Level 2 . | . . . . . Level 3 . | . . . . . Level 4 . | . . . . . Level 5 . | . . . . . High Security . | . . . . . Max Security . | . . . . . Squads Dispatched 2 | . 2 . . . Investigation 1 | . 1 . . . Extermination . | . . . . . Reinforcement 1 | . 1 . . . Assault . | . . . . . Garrison . | . . . . . Intercept . | . . . . . Searches Triggered . | . . . . . Construction Impeded . | . . . . . Haulers Reinforced . | . . . . . Active Scanning Responses . | . . . . . Cargo Convoy Interrupts . | . . . . . Stealth | -11 -10 -10 -9 -8 --------- Run | Yrd Mat Min Mat Mat Distress Signals 3 | . 2 . . 1 Communications Jammed . | . . . . . Distress Signals . | . . . . . Times Spotted 26 | . 11 2 6 7 Peak Tracking Total 5 | . 5 2 4 5 Tactical Retreats 2 | . 1 . . 1 Traps | -11 -10 -10 -9 -8 ------- Run | Yrd Mat Min Mat Mat Traps Triggered . | . . . . . Indirectly . | . . . . . Trap Hack Attempts . | . . . . . Triggered . | . . . . . Disarmed . | . . . . . Reprogrammed . | . . . . . Reused . | . . . . . Traps Extracted . | . . . . . Installed . | . . . . . Triggered . | . . . . . Machines | -11 -10 -10 -9 -8 ---------- Run | Yrd Mat Min Mat Mat Machines Disabled 1 | . 1 . . . Max in Single Turn 1 | . 1 . . . Machines Repaired . | . . . . . Machines Dismantled . | . . . . . Machines Sabotaged . | . . . . . Overloaded Fab Kills . | . . . . . Hacking | -11 -10 -10 -9 -8 --------- Run | Yrd Mat Min Mat Mat Machines Accessed 7 | . 4 . 3 . Terminals 4 | . 2 . 2 . Fabricators . | . . . . . Repair Stations 2 | . 1 . 1 . Recycling Units 1 | . 1 . . . Scanalyzers . | . . . . . Garrison Access . | . . . . . Total Hacks 24 | . 15 . 9 . Successful 11 | . 7 . 4 . Failed 13 | . 8 . 5 . Catastrophic 1 | . . . 1 . Database Lockouts . | . . . . . Manual 6 | . 4 . 2 . Terminals 13 | . 8 . 5 . Fabricators . | . . . . . Repair Stations 8 | . 4 . 4 . Recycling Units 3 | . 3 . . . Scanalyzers . | . . . . . Garrison Access . | . . . . . Terminal Hacks 5 | . 2 . 3 . Branch Access Points 2 | . 1 . 1 . Emergency Access Points 1 | . . . 1 . Locate Traps 2 | . 1 . 1 . Fabricator Hacks . | . . . . . Repair Station Hacks 5 | . 4 . 1 . Scan Component 3 | . 2 . 1 . Repair 2 | . 2 . . . Recycling Unit Hacks 1 | . 1 . . . Report Inventory 1 | . 1 . . . Scanalyzer . | . . . . . Garrison Access Hacks . | . . . . . Unauthorized Hacks . | . . . . . Terminals . | . . . . . Fabricators . | . . . . . Repair Stations . | . . . . . Recycling Units . | . . . . . Scanalyzers . | . . . . . Garrison Access . | . . . . . Data Cores Recovered . | . . . . . Used . | . . . . . Hacking Detections 7 | . 4 . 3 . Full Trace Events 4 | . 2 . 2 . Feedback Events . | . . . . . Feedback Blocked . | . . . . . Robot Schematics Acquired . | . . . . . Robots Built . | . . . . . Authchips . | . . . . . Time . | . . . . . Total Robot Build Rating . | . . . . . Part Schematics Acquired . | . . . . . Parts Built . | . . . . . Authchips . | . . . . . Time . | . . . . . Total Part Build Rating . | . . . . . Parts Repaired 2 | . 2 . . . Time 52 | . 52 . . . Parts Recycled . | . . . . . Recycled Matter . | . . . . . Retrieved Matter . | . . . . . Retrieved Components . | . . . . . Parts Scanalyzed . | . . . . . Part Schematics Acquired . | . . . . . Parts Damaged . | . . . . . Bothacking | -11 -10 -10 -9 -8 ------------ Run | Yrd Mat Min Mat Mat Used RIF Installer . | . . . . . Robots Hacked . | . . . . . Non-combat . | . . . . . Combat . | . . . . . Robot Hacks Applied . | . . . . . Relay Couplers Released . | . . . . . Fabnet Peak Effective % . | . . . . . Robots Rewired . | . . . . . Allies Hacked . | . . . . . Hacks Repelled . | . . . . . Allies | -11 -10 -10 -9 -8 -------- Run | Yrd Mat Min Mat Mat Total Allies . | . . . . . Largest Group . | . . . . . Highest-Rated Group . | . . . . . Highest-Rated Ally . | . . . . . Total Orders . | . . . . . Ally Attacks . | . . . . . Total Damage . | . . . . . Kills . | . . . . . Allies Corrupted . | . . . . . Allies Melted . | . . . . . Intel | -11 -10 -10 -9 -8 ------- Run | Yrd Mat Min Mat Mat Robot Analysis Total . | . . . . . Derelict Logs Recovered 1 | . . 1 . . Drone Launches . | . . . . . Drone Recoveries . | . . . . . Exploration | -11 -10 -10 -9 -8 ------------- Run | Yrd Mat Min Mat Mat Turns Passed 1024 | 56 459 232 86 191 Spaces Moved 1165 | 45 323 454 153 190 Core 179 | 17 160 2 . . Treads . | . . . . . Legs 191 | 28 163 . . . Wheels . | . . . . . Hover 59 | . . . . 59 Flight 736 | . . 452 153 131 Fastest Speed 31 | 50 50 37 37 31 Average Speed 52 | 95 85 37 37 38 Slowest Speed 120 | 120 120 50 37 110 Overloaded Moves . | . . . . . Propulsion Burnouts . | . . . . . Robots Hopped 2 | . . 1 . 1 Cave-ins Triggered . | . . . . . Exploration Rate (%) 37 | 3 62 89 24 11 Regions Visited 4 Branch Regions 1 Pre-discovered Areas 1 | . . 1 . . Known Exits Taken 2 | . 1 . 1 . Unknown Exits Taken 2 | 1 . 1 . . Scrap Searched 2 | . . 2 . . Spaces Dug . | . . . . . Terrain Destroyed 15 | . 15 . . . Melee . | . . . . . Projectile . | . . . . . AOE 15 | . 15 . . . Terrain Rammed . | . . . . . Walls Destroyed . | . . . . . Machines Disabled . | . . . . . Actions | -11 -10 -10 -9 -8 --------- Run | Yrd Mat Min Mat Mat Total 1491 | 57 466 492 181 295 Wait 205 | . 98 17 15 75 Move 1157 | 44 322 451 152 188 Hop 2 | . . 1 . 1 Pick Up 26 | 7 7 3 4 5 Fast Attach 13 | 1 3 3 1 5 Attach 11 | 5 . 2 2 2 Detach 1 | . . . 1 . Swap 10 | . 6 . . 4 Drop 21 | . 5 3 4 9 Fire 42 | . 25 9 2 6 Melee 3 | . . 3 . . Ram . | . . . . . Kick . | . . . . . Crush . | . . . . . Escape Stasis . | . . . . . Rewire . | . . . . . Trap . | . . . . . Miscellaneous . | . . . . . Route ------- -11/Scrapyard -10/Materials (discovered 3 exits: *Mat / *Min x2) -10/Mines (discovered 2 exits: *Mat x2) -9/Materials (discovered 2 exits: *Mat / Min) -8/Materials History --------- Turn | Location | Event 4 | -11/Scrapyard | Discovered new exit (range 15) 57 | -11/Scrapyard | Entered Materials 239 | -10/Materials | Identified exit to Mines 311 | -10/Materials | Build established: Mutant 362 | -10/Materials | Repaired Aluminum Leg 426 | -10/Materials | Repaired Sensor Array 451 | -10/Materials | Discovered new exit (range 6) 516 | -10/Materials | Entered Mines 525 | -10/Mines | Core integrity fell below 50% 548 | -10/Mines | Discovered new exit (range 14) 573 | -10/Mines | Learned location of Storage (-8) 614 | -10/Mines | Found a hidden stash of uninstalled traps 620 | -10/Mines | Learned Materials stockpile data 729 | -10/Mines | Discovered new exit (range 14) 748 | -10/Mines | Entered Materials 748 | -9/Materials | Evolved 2 slots: Utility x2 816 | -9/Materials | Identified exit to Mines 833 | -9/Materials | Discovered new exit (range 3) 833 | -9/Materials | Identified exit to Materials 834 | -9/Materials | Entered another Materials area 834 | -8/Materials | Evolved 2 slots: Propulsion x2 1025 | -8/Materials | Self-destructed Last Messages --------------- 00888_ Acquired Cld. Pulse Rifle. 00891_ Dropped Flight Unit. 00893_ Dropped Airjet. 00902_ Acquired Airjet. 00903_ K-01 Serf collects debris. 00904_ Dropped Flight Unit. 00905_ K-01 Serf collects debris. 00906_ Acquired Cld. Pulse Rifle. 00910_ Dropped Trap Scanner. 00910_ Acquired Imp. Cooling System. 00916_ K-01 Serf collects debris. 00921_ W-25 Informer sends out distress signal. 00924_ K-01 Serf collects debris. 01012_ G-50 Soldier suffers critical hit (Burn). 01014_ Critical hit (Burn: +37). 01015_ G-50 Soldier suffers critical hit (Burn). 01015_ Lgt. Angular Momentum Engine melted. 01015_ G-50 Soldier destroyed. 01018_ G-47 Trooper suffers critical hit (Burn). 01024_ Critical hit (Burn: +37). Map ----- +----------------------------------------------------+ | ??????###### ##????????????????????? | | ??????#[[ #????????????????????? | | ??????#[[ #????????????????????? | | ??????#!! #????????????????????? | | ??????# ![ #????????????????????? | | ??????#==[= #????????????????????? | | ??????#! =### ###????????????????????? | | ??????#####?# #??????????#######?????? | | ????????????# ############ #?????? | | ?????######## + #?????? | | ?????# # ############ #?????? | | ?????# """ # ############ #?????? | | ?????# """ + # ## #?????? | | ?????# """ # # """ """ ## #?????? | | ?????# # # """ """ ## #?????? | | ?????# # # """ """ ## ####### | | ????######### # ## # # | | ????# # # ! [ ## # # | | ????# """ + # ## # # | | ????# """ # # ## #""" # | | ????# """ # #####+########+###""" # | | ????#! # #""" # | | ????# """ + + # | | ????# """ # #""" # | | ????# """ ###### ##;########""" # | | ????# #????# # gg@! ##""" # | | ????# #????##### ## # | | ????#[ #????????# ## # | | ????#########????????# """ ######## | | ?????????????????????# """"" #??????? | | ?????????????????????# """"" #??????? | | ?????????????????????# """"" #??????? | | ?????????????????????#[ """ #??????? | | ?????????????????????##########??????? | | | | | | | | | | | | | | | | | | | | | | | | | | | | | | | | | +----------------------------------------------------+ Best States ------------- Heat Dissipation 58 Energy Generation 10 Energy Capacity 125 Matter Stores 300 Matter Capacity 300 Sight Range 16 Robot Scan Range 14 Terrain Scan Density 10 Propulsion Shielding 33 Evasion (%) 63 Targeting Accuracy 5 Item Schematics ----------------- None Robot Schematics ------------------ None Fabricated ------------ Nothing Alien Tech Used ----------------- None Achievements -------------- None Challenges ------------ None Game ------ Seed TacticalCorePick Manual? 0 Play Time 00:18:57 Cumulative 16.4 hours Start 2024.06.03 @ 18:05:05 End 2024.06.03 @ 18:23:58 Sessions 1 Manual Loads 0 Difficulty Rogue Special Mode None Game No. 37 Rogue 37 Adventurer 0 Explorer 0 Win Type - Total 0 Types 0/0/0/0/0/0/0/0/0 Lore% 16 Gallery% 19 Achievement% 16 Wizard Run 0 Options --------- Layout 0 ASCII 0 Keyboard 0 Movement Mouse Keybinds 0 Fullscreen 2 Font 18/Terminus Map View 76x50 Zoom Use 0% Tactical HUD 1 Map Filters NONE Filters NONE Steam 1 RUN: ce8c073a-349b-481b-98ca-408f65eb0bd4